bitfinex-derivatives/quotes_SOLF0:USTF0_20250716
["timestamp","ask_amount","ask_price","bid_price","bid_amount"]
[1752690773489,3.28,174.56,174.55,3.26]
[1752690774192,9.0057,174.56,174.55,3.26]
[1752690774393,9.0057,174.56,174.55,7.38915618]
[1752690774788,9.0057,174.56,174.55,4.12915618]
[1752690775400,9.0057,174.56,174.55,7.38915618]
[1752690775801,3.28,174.57,174.56,3.26]
[1752690777097,9.0052,174.57,174.56,3.26]
[1752690777600,0.03911561,174.59,174.56,3.26]
[1752690777796,9.0049,174.58,174.57,3.26]
[1752690778004,3.28,174.58,174.55,7.38915618]
[1752690778301,3.28,174.57,174.56,3.26]
[1752690779200,9.0049,174.58,174.57,3.26]
[1752690780300,5.7249,174.58,174.57,7.38915618]
[1752690780802,3.31911561,174.59,174.58,3.26]
[1752690781005,3.31911561,174.59,174.58,0.81375774]
[1752690781205,5.7248,174.58,174.57,4.12915618]
[1752690781399,3.28,174.57,174.55,4.12915618]
[1752690781599,3.28,174.56,174.55,4.12915618]
[1752690782804,9.0055,174.56,174.55,4.12915618]
[1752690783003,9.0055,174.56,174.55,6.7014627]
[1752690783197,9.0055,174.56,174.55,4.1314627]
[1752690785304,21.84921048,174.56,174.55,4.1314627]
[1752690788109,9.006,174.55,174.54,4.1314627]
[1752690788298,21.85513078,174.55,174.54,4.1314627]
[1752690788697,9.006,174.55,174.54,4.1314627]
[1752690789412,3.28,174.54,174.53,2.57]
[1752690789604,3.28,174.54,174.51,2.57]
[1752690789804,16.12913078,174.53,174.51,6.70423224]
[1752690790108,3.28,174.52,174.51,6.70423224]
[1752690791110,3.28,174.53,174.52,2.57]
[1752690791607,3.28,174.53,174.47,2.57]
[1752690791912,5.7274,174.51,174.49,4.13423224]
[1752690792212,3.28,174.5,174.49,6.70423224]
[1752690792708,3.28,174.52,174.51,2.57]
[1752690793008,16.17117635,174.54,174.52,4.13423224]
[1752690793213,0.04204557,174.54,174.53,2.57]
[1752690793514,12.84913078,174.56,174.53,2.57]
[1752690793811,12.84913078,174.57,174.55,4.13423224]
[1752690794108,9.04359429,174.56,174.55,6.70423224]
[1752690794312,3.31799429,174.56,174.55,4.13423224]
[1752690794605,9.04349429,174.56,174.55,4.13423224]
[1752690795306,21.89262507,174.56,174.55,4.13423224]
[1752690795506,3.28,174.54,174.53,4.13423224]
[1752690795707,3.28,174.54,174.53,6.70423224]
[1752690796616,9.0062,174.54,174.53,6.70423224]
[1752690797306,9.0062,174.54,174.36,4.76774778]
[1752690797307,3.25,174.53,174.45,2.58]
[1752690797514,3.25,174.53,174.48,4.13423224]
[1752690797706,3.25,174.5,174.48,4.13423224]
[1752690798211,3.25,174.5,174.45,5.7289]
[1752690798411,3.25,174.5,174.48,4.13423224]
[1752690799003,5.728,174.49,174.48,4.13423224]
[1752690799216,8.978,174.49,174.48,4.13423224]
[1752690799416,3.25,174.49,174.46,4.13423224]
[1752690800006,16.09913078,174.49,174.46,4.13423224]
[1752690800210,3.25,174.47,174.46,4.13423224]
[1752690800613,3.25,174.49,174.46,6.71423224]
[1752690800810,5.7278,174.49,174.48,4.13423224]
[1752690801011,5.7278,174.49,174.47,2.58]
[1752690801318,8.9778,174.49,174.48,4.13423224]
[1752690801906,3.25,174.49,174.48,6.71423224]
[1752690802110,3.25,174.49,174.48,2.58]
[1752690802309,0.03758421,174.5,174.48,6.71423224]
[1752690802515,16.09913078,174.52,174.49,2.58]
[1752690802715,3.25,174.52,174.51,6.71423224]
[1752690803015,3.25,174.52,174.51,2.58]
[1752690803214,3.25,174.52,174.51,6.71423224]
[1752690803415,8.9768,174.52,174.51,4.13423224]
[1752690804009,5.7275,174.5,174.49,4.13423224]
[1752690804212,8.9775,174.5,174.49,4.13423224]
[1752690804910,3.25,174.5,174.49,6.71423224]
[1752690805311,3.25,174.51,174.5,2.58]
[1752690805510,21.82573078,174.53,174.51,2.58]
[1752690805717,21.82573078,174.53,174.52,6.71423224]
[1752690805920,8.9766,174.53,174.52,6.71423224]
[1752690806221,5.7263,174.54,174.52,6.71423224]
[1752690806514,8.9763,174.54,174.53,2.58]
[1752690806722,3.25,174.53,174.52,6.71423224]
[1752690807608,8.9765,174.53,174.52,6.71423224]
[1752690808317,8.9765,174.53,174.52,4.13423224]
[1752690809718,3.25,174.53,174.52,6.71423224]
[1752690810314,8.9765,174.53,174.52,6.71423224]
[1752690810714,3.25,174.53,174.52,6.71423224]
[1752690810914,16.09913078,174.57,174.52,2.58]
[1752690811118,3.25,174.6,174.56,2.58]
[1752690811317,3.25,174.6,174.59,4.13423224]
[1752690811520,16.09913078,174.62,174.6,2.58]
[1752690811715,12.84913078,174.63,174.59,1.02042195]
[1752690811921,3.25,174.6,174.59,1.02042195]
[1752690812623,3.25,174.6,174.59,9.32482195]
[1752690812827,3.25,174.62,174.59,9.32482195]
[1752690813427,3.25,174.62,174.61,4.13423224]
[1752690814434,3.25,174.62,174.61,9.85813224]
[1752690814729,3.25,174.62,174.61,4.13423224]
[1752690815124,3.25,174.62,174.61,9.85813224]
[1752690815624,3.25,174.62,174.61,12.43813224]
[1752690815927,3.25,174.62,174.61,9.85813224]
[1752690816831,3.25,174.62,174.6,5.7241]
[1752690817033,5.7233,174.63,174.59,2.58]
[1752690817234,5.7233,174.63,174.61,4.13423224]
[1752690817527,3.25,174.62,174.61,9.85803224]
[1752690819133,8.973,174.64,174.62,8.3035]
[1752690819434,3.25,174.63,174.62,8.3035]
[1752690819634,3.25,174.63,174.62,9.85773224]
[1752690819835,3.25,174.63,174.61,5.7238]
[1752690820035,3.25,174.62,174.61,5.7238]
[1752690820235,3.25,174.62,174.61,9.85803224]
[1752690820838,3.25,174.62,174.61,5.7238]
[1752690821029,3.25,174.62,174.61,9.85803224]
[1752690821235,3.25,174.64,174.62,2.58]
[1752690821436,3.25,174.64,174.63,4.13423224]
[1752690821630,3.25,174.64,174.54,2.58]
[1752690821837,3.25,174.64,174.62,4.13423224]
[1752690822340,3.25,174.63,174.62,4.13423224]
[1752690823536,8.9732,174.63,174.62,4.13423224]
[1752690823731,3.25,174.63,174.62,4.13423224]
[1752690823935,3.25,174.65,174.62,2.58]
[1752690824138,3.25,174.64,174.63,4.13423224]
[1752690825037,12.84913078,174.68,174.63,4.13423224]
[1752690825238,3.25,174.67,174.64,2.58]
[1752690825446,3.25,174.67,174.63,4.13423224]
[1752690825642,3.25,174.67,174.63,2.58]
[1752690825838,3.25,174.67,174.63,6.71423224]
[1752690826346,12.84913078,174.66,174.54,2.58]
[1752690826638,3.25,174.65,174.6,4.13423224]
[1752690826838,3.12,174.61,174.6,4.13423224]
[1752690827442,3.12,174.61,174.6,6.71423224]
[1752690827747,3.12,174.61,174.6,4.13423224]
[1752690828145,3.12,174.61,174.6,6.71423224]
[1752690828940,3.12,174.61,174.6,12.43843224]
[1752690829141,3.12,174.61,174.6,8.3042]
[1752690829450,3.15765671,174.62,174.61,2.58]
[1752690829845,3.15765671,174.62,174.6,9.85843224]
[1752690830042,0.03765671,174.62,174.6,12.43843224]
[1752690830237,3.12,174.61,174.6,12.43843224]
[1752690832351,3.12,174.61,174.6,8.3042]
[1752690832552,3.12,174.61,174.6,12.43843224]
[1752690832851,3.12,174.61,174.6,4.13423224]
[1752690833852,0.03765671,174.62,174.61,2.58]
[1752690834150,3.15765671,174.62,174.61,2.58]
[1752690834447,0.03765671,174.62,174.6,4.13423224]
[1752690834654,3.12,174.61,174.6,12.43833224]
[1752690835953,3.12,174.61,174.6,8.3041]
[1752690836253,3.12,174.61,174.6,12.43833224]
[1752690841558,0.03765671,174.62,174.61,8.3039]
[1752690844249,3.15765671,174.62,174.61,8.3039]
[1752690846760,0.03765671,174.62,174.61,8.3039]
[1752690847557,3.12,174.66,174.64,2.58]
[1752690847754,3.12,174.66,174.63,4.13423224]
[1752690848064,3.12,174.66,174.64,2.58]
[1752690848256,3.12,174.66,174.64,5.7227]
[1752690848451,3.12,174.68,174.65,6.70643559]
[1752690848758,5.7225,174.66,174.63,2.58]
[1752690848958,15.96913078,174.69,174.65,0.04007985]
[1752690849263,3.12,174.67,174.65,0.04007985]
[1752690850161,8.8422,174.66,174.65,0.04007985]
[1752690850864,3.12,174.66,174.65,0.04007985]
[1752690851265,3.12,174.66,174.65,0.01013629]
[1752690851762,8.8422,174.66,174.65,0.01013629]
[1752690853264,3.12,174.66,174.65,4.13657188]
[1752690853464,3.12,174.66,174.65,6.71657188]
[1752690853860,3.12,174.66,174.65,4.13657188]
[1752690854364,3.12,174.66,174.65,0.01013629]
[1752690854967,5.7221,174.67,174.65,0.01013629]
[1752690855363,3.12,174.66,174.65,0.01013629]
[1752690855569,5.7221,174.67,174.65,0.01013629]
[1752690856162,3.12,174.66,174.65,0.01013629]
[1752690856859,5.7222,174.66,174.65,0.01013629]
[1752690860373,18.57133078,174.66,174.65,0.01013629]
[1752690861171,5.724,174.61,174.59,4.13016529]
[1752690861369,3.39,174.6,174.59,4.13016529]
[1752690862366,9.1142,174.6,174.59,4.13016529]
[1752690862564,5.0264127,174.7,174.6,2.58]
[1752690862768,3.39,174.69,174.62,4.12934141]
[1752690862967,3.39,174.69,174.62,6.70934141]
[1752690863666,3.39,174.66,174.63,2.58]
[1752690864169,9.1124,174.66,174.63,2.58]
[1752690864372,3.39,174.64,174.62,4.12934141]
[1752690864571,3.39,174.63,174.61,6.70934141]
[1752690865466,3.39,174.63,174.62,2.58]
[1752690865774,9.1132,174.63,174.62,2.58]
[1752690866077,3.39,174.67,174.59,6.70934141]
[1752690866474,3.39,174.61,174.59,6.70934141]
[1752690866771,3.39,174.63,174.61,2.58]
[1752690866971,3.39,174.63,174.61,6.70934141]
[1752690867875,3.39,174.63,174.61,2.58]
[1752690868064,3.39,174.62,174.61,2.58]
[1752690868470,3.39,174.62,174.58,2.58]
[1752690868776,5.7242,174.6,174.59,2.58]
[1752690869076,3.39,174.6,174.59,4.12934141]
[1752690869676,3.39,174.6,174.59,6.70934141]
[1752690870470,3.39,174.61,174.59,6.70934141]
[1752690870672,3.39,174.61,174.6,2.58]
[1752690871076,9.1139,174.61,174.6,2.58]
[1752690871872,3.39,174.6,174.59,6.70934141]
[1752690872786,9.1139,174.61,174.6,2.58]
[1752690873274,9.1139,174.61,174.59,4.12934141]
[1752690873477,12.8453766,174.64,174.59,4.12934141]
[1752690873478,9.1142,174.6,174.59,4.12934141]
[1752690874079,5.7246,174.59,174.58,4.13046726]
[1752690874277,9.1146,174.59,174.58,4.13046726]
[1752690874777,3.39,174.59,174.56,4.13046726]
[1752690874987,16.2353766,174.59,174.54,4.13046726]
[1752690875284,3.39,174.55,174.54,4.13046726]
[1752690876381,3.39,174.59,174.54,4.13046726]
[1752690876584,3.39,174.59,174.55,2.58]
[1752690876779,3.39,174.59,174.54,4.13046726]
[1752690876980,5.7258,174.55,174.54,4.13046726]
[1752690877290,9.1158,174.55,174.54,4.13046726]
[1752690877782,9.1158,174.55,174.53,2.58]
[1752690877983,9.1158,174.55,174.54,4.13046726]
[1752690879383,9.1158,174.55,174.51,5.7269]
[1752690879384,3.39,174.52,174.51,4.13046726]
[1752690879885,3.39,174.52,174.51,6.71046726]
[1752690880090,3.39,174.52,174.51,4.13046726]
[1752690880492,12.8453766,174.57,174.51,4.13046726]
[1752690880692,12.8453766,174.58,174.51,4.13046726]
[1752690881082,3.39,174.57,174.51,4.13046726]
[1752690882687,12.8453766,174.58,174.51,4.13046726]
[1752690882688,9.1168,174.52,174.51,4.13046726]
[1752690882895,5.7268,174.52,174.51,6.71046726]
[1752690883094,3.39,174.53,174.52,2.58]
[1752690883491,12.8453766,174.59,174.51,4.13046726]
[1752690883693,3.39,174.52,174.51,6.71046726]
[1752690885196,3.39,174.52,174.51,4.13046726]
[1752690886290,3.39,174.52,174.51,6.71046726]
[1752690887597,3.39,174.52,174.51,2.58]
[1752690887806,3.24,174.58,174.51,4.13046726]
[1752690888097,16.97584386,174.57,174.49,79.20697693]
[1752690888292,16.97584386,174.57,174.49,75.07650967]
[1752690888293,8.9675,174.5,174.49,75.07650967]
[1752690889194,3.24,174.47,174.45,4.13046726]
[1752690889394,3.24,174.46,174.45,6.72046726]
[1752690889596,3.24,174.46,174.45,4.13046726]
[1752690889899,5.7285,174.47,174.43,5.7297]
[1752690890092,3.24,174.45,174.44,2.59]
[1752690890399,3.24,174.45,174.44,6.72046726]
[1752690891094,3.24,174.45,174.44,12.44986726]
[1752690891893,3.24,174.5,174.45,2.59]
[1752690892090,3.24,174.5,174.48,4.13046726]
[1752690892494,18.5733766,174.58,174.48,4.13046726]
[1752690892495,8.9678,174.49,174.48,4.13046726]
[1752690893992,8.9678,174.49,174.48,6.72046726]
[1752690894298,8.9678,174.49,174.48,4.13046726]
[1752690894698,3.24,174.49,174.45,4.13046726]
[1752690895198,3.24,174.46,174.45,4.13046726]
[1752690895794,3.24,174.46,174.32,494.84]
[1752690896003,3.24,174.46,174.42,4.13046726]
[1752690896192,3.24,174.46,174.42,6.72046726]
[1752690896389,3.24,174.46,174.42,2.59]
[1752690896789,3.24,174.46,174.42,4.13046726]
[1752690896994,3.24,174.46,174.42,6.72046726]
[1752690897201,3.24,174.45,174.44,6.72046726]
[1752690897703,3.24,174.45,174.42,6.72046726]
[1752690897896,3.24,174.45,174.42,4.13046726]
[1752690898292,3.24,174.43,174.42,4.13046726]
[1752690898497,3.24,174.43,174.42,6.72046726]
[1752690899401,3.24,174.43,174.42,4.13046726]
[1752690900694,3.24,174.42,174.41,2.59]
[1752690900901,3.24,174.42,174.41,6.72046726]
[1752690901296,3.24,174.42,174.39,2.59]
[1752690901498,3.24,174.42,174.37,2.59]
[1752690901806,3.24,174.42,174.38,4.13046726]
[1752690902195,3.24,174.42,174.37,4.13046726]
[1752690902507,3.24,174.44,174.36,4.13046726]
[1752690902709,4.13046726,174.45,174.36,4.13046726]
[1752690902906,3.24,174.44,174.38,4.13046726]
[1752690903302,5.7306,174.41,174.38,4.13046726]
[1752690903501,3.24,174.4,174.38,6.72046726]
[1752690903707,3.24,174.4,174.39,6.72046726]
[1752690904209,8.9708,174.4,174.38,4.13046726]
[1752690904408,3.24,174.39,174.38,6.72046726]
[1752690904906,3.24,174.39,174.38,12.45186726]
[1752690905501,8.9706,174.41,174.38,6.72046726]
[1752690905697,4.13046726,174.47,174.39,6.72046726]
[1752690905698,3.24,174.4,174.39,6.72046726]
[1752690905897,3.24,174.4,174.39,4.13046726]
[1752690906507,3.24,174.4,174.33,2.59]
[1752690906703,3.24,174.4,174.36,4.13046726]
[1752690906908,3.24,174.4,174.36,12.45246726]
[1752690907306,3.24,174.38,174.36,12.45246726]
[1752690907509,3.24,174.37,174.36,6.72046726]
[1752690908109,3.24,174.37,174.36,4.13046726]
[1752690908410,3.24,174.34,174.32,241.59]
[1752690908709,3.24,174.34,174.33,4.13046726]
[1752690909008,3.24,174.34,174.25,2.59]
[1752690909207,3.24,174.34,174.28,6.72046726]
[1752690909406,3.24,174.32,174.28,2.59]
[1752690909609,3.24,174.32,174.28,4.13046726]
[1752690909809,3.24,174.32,174.28,6.72046726]
[1752690910004,3.24,174.32,174.28,2.59]
[1752690910209,3.24,174.32,174.29,4.13046726]
[1752690910504,3.24,174.32,174.29,6.72046726]
[1752690910704,3.24,174.32,174.31,6.72046726]
[1752690911307,3.24,174.34,174.31,4.13046726]
[1752690911611,5.7323,174.36,174.24,500.12863156]
[1752690911612,3.24,174.42,174.34,2.59]
[1752690911921,3.24,174.42,174.36,4.13046726]
[1752690912213,3.24,174.42,174.35,4.13046726]
[1752690912711,5.7312,174.39,174.35,4.13046726]
[1752690912908,3.24,174.38,174.37,4.13046726]
[1752690913409,3.24,174.38,174.37,6.72046726]
[1752690913917,3.24,174.38,174.37,4.13046726]
[1752690914119,3.24,174.38,174.37,6.72046726]
[1752690914709,3.24,174.38,174.37,4.13046726]
[1752690915513,5.7314,174.38,174.35,2.59]
[1752690915707,3.24,174.37,174.35,2.59]
[1752690916019,3.24,174.37,174.36,6.72046726]
[1752690916220,3.24,174.45,174.36,6.72046726]
[1752690916510,3.24,174.45,174.38,4.13046726]
[1752690916720,5.731,174.4,174.38,4.13046726]
[1752690916915,3.24,174.45,174.38,4.13046726]
[1752690917615,5.7309,174.4,174.38,4.13046726]
[1752690917815,3.1,174.39,174.38,4.13046726]
[1752690918122,3.1,174.39,174.36,4.13046726]
[1752690918323,3.1,174.39,174.34,2.6]
[1752690918514,3.1,174.39,174.36,4.13046726]
[1752690919312,3.1,174.37,174.36,4.13046726]
[1752690919913,3.1,174.37,174.36,6.73046726]
[1752690920115,8.8317,174.37,174.36,4.13046726]
[1752690921322,3.1,174.37,174.36,6.73046726]
[1752690921510,3.1,174.37,174.36,4.13046726]
[1752690921911,3.1,174.37,174.36,6.73046726]
[1752690922218,3.1,174.44,174.36,6.73046726]
[1752690922416,3.1,174.37,174.36,6.73046726]
[1752690923216,3.1,174.37,174.36,4.13046726]
[1752690923418,3.1,174.37,174.36,6.73046726]
[1752690924018,8.8316,174.38,174.36,6.73046726]
[1752690924219,3.1,174.37,174.36,2.6]
[1752690924413,3.1,174.37,174.36,6.73046726]
[1752690924918,8.8317,174.37,174.36,4.13046726]
[1752690925123,3.1,174.37,174.36,6.73046726]
[1752690925620,3.1,174.44,174.37,2.6]
[1752690925820,3.1,174.44,174.38,4.13046726]
[1752690926522,5.7313,174.39,174.38,4.13046726]
[1752690926725,8.8313,174.39,174.38,4.13046726]
[1752690927124,3.1,174.39,174.38,4.13046726]
[1752690927926,8.8311,174.39,174.38,4.13046726]
[1752690928126,3.1,174.39,174.38,4.13046726]
[1752690928722,3.1,174.39,174.37,2.6]
[1752690929020,3.1,174.39,174.36,4.13046726]
[1752690929225,3.1,174.39,174.34,4.13046726]
[1752690929425,3.1,174.39,174.32,4.13046726]
[1752690929625,3.1,174.39,174.33,4.13046726]
[1752690930138,5.7326,174.35,174.33,4.13046726]
[1752690930337,3.1,174.34,174.33,4.13046726]
[1752690930837,3.1,174.34,174.31,4.13046726]
[1752690931034,3.1,174.34,174.29,2.6]
[1752690931237,3.1,174.34,174.29,6.73046726]
[1752690931432,5.7332,174.33,174.3,2.6]
[1752690931634,4.13046726,174.38,174.29,4.13046726]
[1752690931938,3.1,174.33,174.25,4.13046726]
[1752690932238,3.1,174.33,174.25,6.73046726]
[1752690932632,3.1,174.27,174.25,6.73046726]
[1752690932839,3.1,174.29,174.27,2.6]
[1752690933027,3.1,174.29,174.27,6.73046726]
[1752690934131,3.1,174.29,174.28,2.6]
[1752690934339,3.1,174.29,174.28,6.73046726]
[1752690934640,3.1,174.29,174.28,4.13046726]
[1752690935044,3.1,174.28,174.26,4.13046726]
[1752690935341,3.1,174.26,174.25,2.6]
[1752690935533,3.1,174.26,174.25,6.73046726]
[1752690935836,3.1,174.29,174.25,4.13046726]
[1752690936042,3.1,174.31,174.28,2.6]
[1752690936236,3.1,174.31,174.29,6.73046726]
[1752690936436,3.1,174.3,174.29,6.73046726]
[1752690937444,3.1,174.4,174.3,2.6]
[1752690937740,3.1,174.36,174.28,6.73046726]
[1752690937937,3.1,174.29,174.28,4.13046726]
[1752690939331,3.1,174.29,174.28,9.86456726]
[1752690939541,3.1,174.29,174.28,12.46456726]
[1752690939742,3.1,174.31,174.29,2.6]
[1752690939938,3.1,174.31,174.29,8.3338]
[1752690940243,3.1,174.3,174.29,2.6]
[1752690941345,3.1,174.3,174.29,8.3338]
[1752690941546,3.1,174.3,174.29,6.73046726]
[1752690941848,3.1,174.3,174.29,4.13046726]
[1752690942145,4.13046726,174.36,174.27,6.73046726]
[1752690942345,3.1,174.35,174.27,6.73046726]
[1752690942642,5.7328,174.32,174.28,5.7339]
[1752690942840,3.1,174.31,174.28,12.46436726]
[1752690943037,3.1,174.3,174.29,5.7338]
[1752690943234,3.1,174.37,174.29,2.6]
[1752690943534,3.1,174.37,174.3,4.13046726]
[1752690943747,3.1,174.37,174.3,6.73046726]
[1752690944039,3.1,174.37,174.32,5.7328]
[1752690944242,3.1,174.37,174.31,2.6]
[1752690944846,5.7319,174.35,174.31,8.333]
[1752690945041,3.1,174.33,174.32,2.6]
[1752690945246,3.1,174.33,174.31,5.733]
[1752690945446,3.1,174.33,174.32,5.7328]
[1752690945646,3.1,174.33,174.32,12.46326726]
[1752690945841,3.1,174.35,174.33,2.6]
[1752690946038,3.1,174.35,174.34,4.13046726]
[1752690947138,3.22,174.34,174.33,12.46266726]
[1752690947837,495.2,174.41,174.33,4.13046726]
[1752690948045,3.22,174.35,174.34,2.59]
[1752690948345,3.22,174.35,174.33,9.86286726]
[1752690948540,3.22,174.34,174.33,12.45286726]
[1752690948932,5.7313,174.37,174.34,5.7321]
[1752690949137,3.22,174.35,174.34,5.7321]
[1752690949335,3.22,174.35,174.34,8.3221]
[1752690949542,3.22,174.4,174.35,2.59]
[1752690949742,3.22,174.4,174.36,4.13046726]
[1752690949941,3.22,174.39,174.38,6.72046726]
[1752690951752,175.54,174.47,174.39,2.59]
[1752690951947,3.22,174.46,174.39,2.59]
[1752690952243,5.7303,174.4,174.38,4.13046726]
[1752690952447,3.22,174.39,174.38,4.13046726]
[1752690952648,3.22,174.39,174.37,2.59]
[1752690952844,3.22,174.39,174.38,4.13046726]
[1752690953148,3.22,174.39,174.38,6.72046726]
[1752690953549,8.9499,174.41,174.38,6.72046726]
[1752690953748,3.22,174.41,174.4,4.13046726]
[1752690953944,3.22,174.4,174.34,2.59]
[1752690954246,3.22,174.4,174.39,2.59]
[1752690954645,3.22,174.4,174.39,4.13046726]
[1752690955748,8.9502,174.4,174.39,4.13046726]
[1752690957747,8.9509,174.38,174.37,4.13046726]
[1752690957947,3.22,174.38,174.35,4.13046726]
[1752690958350,3.22,174.36,174.35,4.13046726]
[1752690959551,8.9515,174.36,174.35,4.13046726]
[1752690959752,3.22,174.36,174.35,4.13046726]
[1752690960250,3.22,174.37,174.36,2.59]
[1752690961159,18.55612947,174.39,174.36,2.59]
[1752690961454,3.22,174.37,174.36,2.59]
[1752690961648,3.22,174.39,174.36,5.7315]
[1752690961849,3.22,174.39,174.37,6.72046726]
[1752690962050,3.22,174.38,174.37,4.13046726]
[1752690962349,12.82552947,174.4,174.38,2.59]
[1752690962555,12.82552947,174.4,174.38,4.13046726]
[1752690962556,3.22,174.4,174.38,4.13046726]
[1752690962752,3.22,174.39,174.38,4.13046726]
[1752690962953,12.82552947,174.42,174.39,2.59]
[1752690963253,12.82552947,174.44,174.41,6.72046726]
[1752690963452,3.22,174.42,174.41,6.72046726]
[1752690963655,3.22,174.42,174.34,2.6]
[1752690963852,12.82552947,174.4,174.37,4.13046726]
[1752690964056,3.22,174.39,174.37,4.13046726]
[1752690964255,3.22,174.38,174.35,12.46206726]
[1752690964457,3.22,174.37,174.35,12.46206726]
[1752690964757,3.22,174.36,174.35,12.46216726]
[1752690965360,3.22,174.37,174.36,2.6]
[1752690965658,3.22,174.36,174.35,4.13046726]
[1752690965850,12.82552947,174.39,174.36,2.6]
[1752690966050,3.22,174.4,174.39,2.6]
[1752690966251,3.22,174.4,174.39,6.73046726]
[1752690966647,12.82552947,174.43,174.39,4.13046726]
[1752690966854,5.7302,174.41,174.39,4.13046726]
[1752690967158,3.22,174.39,174.38,2.6]
[1752690967354,3.22,174.39,174.38,6.73046726]
[1752690969854,8.9505,174.39,174.38,4.13046726]
[1752690970051,5.7305,174.39,174.36,4.13046726]
[1752690970257,3.22,174.38,174.36,4.13046726]
[1752690970450,3.22,174.37,174.36,4.13046726]
[1752690970653,3.22,174.37,174.36,6.73046726]
[1752690971550,3.22,174.39,174.36,4.13046726]
[1752690971752,3.22,174.39,174.38,4.13046726]
[1752690972356,3.22,174.39,174.36,4.13046726]
[1752690972958,5.7309,174.38,174.36,4.13046726]
[1752690973162,3.22,174.37,174.36,4.13046726]
[1752690973664,3.22,174.37,174.36,6.73046726]
[1752690974168,3.22,174.36,174.35,6.73046726]
[1752690974467,3.22,174.36,174.35,4.13046726]
[1752690975560,12.82552947,174.4,174.36,2.6]
[1752690975760,8.9507,174.39,174.36,2.6]
[1752690975961,3.22,174.38,174.36,2.6]
[1752690976267,3.22,174.37,174.36,6.73046726]
[1752690977061,3.23,174.39,174.37,2.59]
[1752690977467,3.23,174.38,174.37,2.59]
[1752690977767,3.23,174.37,174.36,6.72046726]
[1752690979371,3.23,174.37,174.36,12.45196726]
[1752690979566,18.55582947,174.4,174.36,12.45196726]
[1752690979872,18.55582947,174.4,174.37,2.59]
[1752690979873,3.23,174.38,174.37,2.59]
[1752690980276,3.23,174.38,174.37,8.3212]
[1752690980468,3.23,174.38,174.37,2.59]
[1752690981958,3.23,174.38,174.37,6.72046726]
[1752690982465,3.23,174.37,174.36,6.72046726]
[1752690983180,3.23,174.37,174.36,4.13046726]
[1752690983665,8.9612,174.37,174.36,4.13046726]
[1752690984872,5.7315,174.36,174.34,6.72046726]
[1752690985076,8.9615,174.36,174.34,6.72046726]
[1752690985367,8.9615,174.36,174.35,2.59]
[1752690985681,8.9618,174.35,174.33,4.13046726]
[1752690985867,3.23,174.34,174.33,4.13046726]
[1752690986074,3.23,174.34,174.32,4.13046726]
[1752690986574,3.23,174.34,174.33,2.59]
[1752690987174,3.23,174.34,174.33,8.3225]
[1752690989480,3.23,174.42,174.34,5.732]
[1752690989669,5.7314,174.37,174.34,9.86246726]
[1752690989972,3.23,174.36,174.34,9.86246726]
[1752690990272,3.23,174.35,174.34,9.86246726]
[1752690990479,3.23,174.35,174.34,12.45246726]
[1752690990778,3.23,174.35,174.34,8.322]
[1752690991674,3.23,174.35,174.34,2.59]
[1752690992371,3.23,174.35,174.33,4.13046726]
[1752690992577,3.23,174.34,174.33,12.45296726]
[1752690993077,3.23,174.37,174.34,2.59]
[1752690993384,3.23,174.36,174.35,6.72046726]